bitfinex-derivatives/quotes_ETHF0:USTF0_20210111
["timestamp","ask_amount","ask_price","bid_price","bid_amount"]
[1610381507425,4.00959,953.48,953.31,2.147]
[1610381507625,2.0818,953.8,953.31,2.147]
[1610381508426,2.1062,954.09,953.31,2.147]
[1610381508624,2.1062,954.09,953.31,1.327]
[1610381509226,2.1062,954.09,953.09,2.376]
[1610381509431,4.00959,953.81,953.7,4.00959]
[1610381509828,2.1062,954.09,953.7,4.00959]
[1610381510027,2.1062,954.09,953.7,2.016]
[1610381510427,2.1062,954.09,953.7,2.208]
[1610381510628,2.1062,954.09,953.7,0.1481]
[1610381511733,2.1185,954.37,953.7,0.1481]
[1610381512531,1.02044,961.82,953.7,0.1481]
[1610381512532,30.9362745,958.94,953.7,0.1481]
[1610381512932,2.086,959.97,953.93,0.32213332]
[1610381513135,2.086,959.97,953.93,2.32213332]
[1610381513336,2.086,959.97,954.09,0.32191533]
[1610381513542,4.00959,957.78,957.01,4.00959]
[1610381513736,2.0922,957.77,957.01,4.00959]
[1610381514138,2.0922,957.77,955.36,0.32173041]
[1610381514336,2.0922,957.77,955.26,0.32175148]
[1610381514738,2.0922,957.77,955.27,2.1028]
[1610381514937,2.1125,958.1,955.44,0.3216555]
[1610381515337,2.1125,958.1,955.76,0.32162944]
[1610381515545,4.00959,957.92,955.77,2.0724]
[1610381515741,4.00959,957.92,955.98,0.32150519]
[1610381515939,4.00959,957.92,955.98,1.684]
[1610381516140,4.00959,957.92,955.98,0.7665]
[1610381516338,2.1125,958.1,955.76,2.213]
[1610381516543,2.1125,958.1,955.98,1.2842]
[1610381516738,2.1125,958.1,955.28,0.32163537]
[1610381516939,3.9295,958.1,955.1,0.32168159]
[1610381517339,3.9295,958.1,955.03,0.32173256]
[1610381517739,3.9295,958.1,954.95,0.32196604]
[1610381517940,3.9295,958.1,954.16,0.32199012]
[1610381518340,3.9295,958.1,954.09,0.32183628]
[1610381518539,3.9295,958.1,953.9,0.96550883]
[1610381518540,3.9295,958.1,954.68,0.3218623]
[1610381518940,3.9295,958.1,954.68,2.195]
[1610381519140,3.9295,958.1,954.68,1.5514]
[1610381519541,4.00959,954.95,954.68,1.091]
[1610381519741,6.07359,954.95,954.68,1.091]
[1610381519943,6.07359,954.95,954.01,0.32202843]
[1610381520342,6.07359,954.95,953.88,0.32207944]
[1610381520542,6.07359,954.95,953.49,1.61039721]
[1610381520543,6.07359,954.95,953.81,0.32214464]
[1610381520744,2.1072,954.94,953.81,0.32214464]
[1610381520943,2.1072,954.94,953.7,0.32212602]
[1610381521344,2.1072,954.94,953.32,1.6106301]
[1610381521345,2.1072,954.94,953.64,0.32105438]
[1610381521544,4.00959,953.65,953.55,1.519]
[1610381521944,4.00959,953.65,953.35,0.32223332]
[1610381522144,4.00959,953.65,953.16,9.994e-05]
[1610381522345,4.00959,953.65,952.93,1.2890185]
[1610381522747,2.0745,953.64,952.73,1.28919966]
[1610381522946,2.0745,953.64,952.63,1.28937849]
[1610381523346,2.0745,953.64,952.52,1.28938737]
[1610381523546,4.00959,952.53,951.85,4.00959]
[1610381523746,2.0745,953.64,951.85,4.00959]
[1610381523948,2.0745,953.64,952.0,2.58474989]
[1610381525552,4.00959,953.29,952.87,4.00959]
[1610381525749,2.0745,953.64,952.87,4.00959]
[1610381525949,2.0745,953.64,952.87,6.43859]
[1610381526152,1.5674,953.64,952.87,6.43859]
[1610381526351,1.0472,956.89,952.87,6.43859]
[1610381526553,3.14852,955.67,952.87,6.43859]
[1610381527551,2.1085,955.67,953.99,4.00959]
[1610381527752,2.1085,955.67,953.99,5.65859]
[1610381528751,0.6,954.63,953.99,1.649]
[1610381528954,2.0637,954.62,953.99,0.9945]
[1610381529153,2.0637,954.62,952.88,5.9938]
[1610381529354,4.4487,954.62,952.88,5.9938]
[1610381529553,4.00959,953.7,953.35,4.00959]
[1610381529753,2.0738,953.84,953.35,4.00959]
[1610381529953,2.0738,953.84,953.35,6.26459]
[1610381530756,2.0832,954.37,953.35,6.26459]
[1610381531456,2.0832,954.37,953.78,4.00959]
[1610381531656,2.0832,954.37,953.78,5.90659]
[1610381531856,2.0832,954.37,953.35,2.255]
[1610381532055,2.0832,954.37,952.88,5.6202]
[1610381532455,2.0832,954.37,952.88,5.2853]
[1610381532655,2.0832,954.37,952.88,4.3436]
[1610381533059,2.0832,954.37,952.88,3.1652]
[1610381533356,2.0832,954.37,952.88,3.0576]
[1610381533556,4.00959,952.89,952.88,3.0576]
[1610381533757,2.0832,954.37,952.88,3.0576]
[1610381533758,2.0939,954.09,952.88,3.0576]
[1610381533955,2.0832,954.37,952.88,3.0576]
[1610381534757,2.0832,954.37,952.87,2.429]
[1610381534956,2.0832,954.37,952.0,2.58474989]
[1610381535157,2.0832,954.37,951.78,0.3227764]
[1610381535357,2.0832,954.37,951.55,0.32288737]
[1610381535557,4.00959,952.16,951.55,0.32288737]
[1610381535758,4.00959,952.16,951.31,0.32290672]
[1610381536160,4.00959,952.16,951.2,0.32293575]
[1610381536557,4.00959,952.16,951.11,0.32295199]
[1610381536760,4.00959,952.16,951.05,0.3229776]
[1610381537059,2.0992,952.24,951.02,0.32297497]
[1610381537258,2.1021,952.94,951.52,2.04494835]
[1610381537461,4.00959,952.42,951.52,2.04494835]
[1610381537860,2.0729,953.23,951.52,2.04494835]
[1610381539561,4.00959,952.46,951.84,4.00959]
[1610381539761,2.13,952.45,951.84,4.00959]
[1610381540563,2.13,952.45,951.52,2.04494835]
[1610381541363,2.0901,952.94,951.52,2.04494835]
[1610381541566,4.00959,952.72,951.92,4.00959]
[1610381541771,4.00959,952.72,951.52,2.04494835]
[1610381542771,2.0901,952.94,951.52,2.04494835]
[1610381543570,2.285,953.12,951.52,2.04494835]
[1610381543571,2.285,953.12,952.21,4.00959]
[1610381543769,2.285,953.12,952.21,5.55259]
[1610381544169,2.285,953.12,952.07,1.785]
[1610381544382,1.27006,952.99,951.52,2.04494835]
[1610381544579,1.27006,952.99,950.78,0.64603726]
[1610381544972,1.27006,952.99,950.29,0.6462017]
[1610381545371,1.27006,952.99,950.01,6.1971]
[1610381545372,1.27006,952.99,950.16,0.64627677]
[1610381545571,1.27006,952.99,950.11,0.64627832]
[1610381546071,1.27006,952.99,950.1,0.64634874]
[1610381546371,1.27006,952.99,950.01,6.1971]
[1610381547171,1.27006,952.99,950.05,0.64636171]
[1610381547373,1.27006,952.99,950.05,2.371]
[1610381547572,4.00959,950.91,950.8,4.00959]
[1610381547974,2.047,952.06,950.05,2.371]
[1610381548976,2.047,952.06,950.05,1.831]
[1610381549173,2.047,952.06,947.48,2.1295]
[1610381549374,2.03174,950.36,948.77,0.72355598]
[1610381549577,4.00959,948.78,948.58,1.94108508]
[1610381549775,1.27006,948.35,948.31,0.34743018]
[1610381549974,0.40559,948.78,947.64,2.5913207]
[1610381550177,0.40559,948.78,947.64,1.3304]
[1610381550375,0.40559,948.78,947.64,2.428]
[1610381550575,0.40559,948.78,947.64,1.7141]
[1610381550975,2.0736,949.99,947.64,1.7141]
[1610381551175,0.4,950.05,947.64,1.7141]
[1610381551575,4.00959,947.65,947.64,2.279]
[1610381551776,4.00959,947.65,947.64,2.1249]
[1610381552078,4.00959,947.65,946.66,0.64881259]
[1610381552276,2.022,947.65,946.47,1.26293776]
[1610381552476,2.022,947.65,945.74,1.62264505]
[1610381552875,2.022,947.65,945.56,1.62262224]
[1610381553076,2.022,947.65,945.62,1.62269595]
[1610381553277,1.801,948.54,945.62,1.62269595]
[1610381553476,1.801,948.54,946.0,0.62433198]
[1610381553676,4.00959,946.01,946.0,1.504]
[1610381553876,1.85,948.13,945.22,1.94743886]
[1610381554076,1.85,948.13,945.22,1.3461]
[1610381554275,2.0918,948.12,944.56,2.37307266]
[1610381554476,1.0472,946.94,944.93,0.54884372]
[1610381554678,1.0472,946.94,945.54,0.97396803]
[1610381554876,1.0472,946.94,945.54,1.579]
[1610381555077,1.0472,946.94,945.0,1.32694659]
[1610381555276,1.0472,946.94,944.43,3.89955726]
[1610381555477,9.0,946.93,944.41,1.52566382]
[1610381555676,4.00959,944.42,944.0,2.63124801]
[1610381555878,1.733,946.44,943.77,1.95068578]
[1610381556076,1.733,946.44,943.77,3.46868578]
[1610381556277,1.733,946.44,944.14,0.08936457]
[1610381556476,1.733,946.44,943.38,2.60131653]
[1610381556477,1.733,946.44,944.06,2.401]
[1610381556678,1.733,946.44,944.06,1.3106]
[1610381556876,1.733,946.44,943.64,0.32401534]
[1610381556877,1.733,946.44,943.46,0.32393372]
[1610381557078,10.733,946.44,943.46,0.13453372]
[1610381557278,10.733,946.44,942.89,1.94360231]
[1610381557279,10.733,946.44,943.83,0.97187242]
[1610381557475,10.733,946.44,943.83,2.41177242]
[1610381557677,4.00959,943.84,943.83,0.7698]
[1610381557876,4.00959,943.84,942.64,1.49253003]
[1610381558077,4.00959,943.84,942.88,1.89671507]
[1610381558279,0.43359,943.84,942.88,2.266]
[1610381558479,0.43359,943.84,942.88,1.7796]
[1610381558878,2.1088,943.83,942.88,1.7796]
[1610381559280,0.43359,943.84,942.88,0.6361]
[1610381559682,4.00959,943.53,942.95,4.00959]
[1610381559882,1.04002,944.74,942.88,0.6361]
[1610381560283,1.09742,944.57,942.88,0.6361]
[1610381560481,1.05949,943.86,941.41,0.1097624]
[1610381561081,1.05949,943.86,941.42,2.1184]
[1610381561283,1.05949,943.86,941.42,3.6704]
[1610381561680,4.00959,942.78,942.5,4.00959]
[1610381561882,2.1485,942.77,942.5,4.00959]
[1610381562282,1.05949,943.86,942.5,2.77369]
[1610381562484,1.05949,943.86,942.5,2.248]
[1610381562781,2.0966,943.85,942.5,2.248]
[1610381563182,2.0966,943.85,942.65,0.65115104]
[1610381563581,2.0966,943.85,942.5,2.248]
[1610381563782,4.00959,942.66,942.5,2.248]
[1610381563981,0.59837,942.67,942.38,0.6512748]
[1610381564181,9.0,943.84,942.38,2.245]
[1610381564382,9.0,943.84,925.36,33.995]
[1610381564581,9.0,943.84,942.38,2.231]
[1610381564782,9.0,943.84,942.38,1.993]
[1610381564985,1.09742,942.55,941.44,1.22673921]
[1610381565185,1.09742,942.55,942.38,2.456]
[1610381565382,1.09742,942.55,942.38,1.0675]
[1610381565784,4.00959,942.39,942.38,1.9]
[1610381565983,4.00959,942.39,940.87,0.18821368]
[1610381566182,13.00959,942.39,940.83,0.30153635]
[1610381566382,4.00959,942.39,939.1,0.33887519]
[1610381566581,4.00959,942.39,937.6,6.52421874]
[1610381566784,26.10037131,942.75,940.39,0.6523462]
[1610381566982,26.12226889,942.94,940.58,0.3898935]
[1610381567183,26.12226889,942.94,940.58,1.7085]
[1610381567383,26.02431351,941.8,939.54,0.32522261]
[1610381567583,26.33551747,942.27,939.26,0.09825829]
[1610381567786,24.7488576,941.49,939.26,2.126]
[1610381567985,24.75119157,941.53,939.55,0.32558789]
[1610381568184,12.77919157,941.53,939.55,2.27008789]
[1610381568384,13.64050712,941.31,939.55,2.049]
[1610381568585,1.15350712,941.31,939.55,2.049]
[1610381568785,1.916,943.12,939.55,1.73545323]
[1610381568985,1.916,943.12,940.65,0.65042733]
[1610381569187,1.916,943.12,940.65,2.64142733]
[1610381569384,2.139,943.11,940.78,0.6504055]
[1610381569584,2.139,943.11,940.69,0.97560825]
[1610381569784,2.139,943.11,940.65,1.991]
[1610381569984,2.139,943.11,940.65,0.4467]
[1610381570184,9.0,943.1,939.4,0.6513796]
[1610381570386,9.0,943.1,939.29,0.65356684]
[1610381570784,9.0,943.1,939.26,1.0252]
[1610381570984,9.0,943.1,939.06,0.98046792]
[1610381571384,1.851,942.36,937.95,4.15055318]
[1610381571585,1.851,942.36,939.75,0.98047002]
[1610381571786,9.0,942.35,939.75,3.16447002]
[1610381571986,9.0,942.35,939.75,2.184]
[1610381572185,9.0,942.35,938.91,0.9805928]
[1610381572385,9.0,942.35,938.35,1.05640692]
[1610381572588,4.00959,938.69,938.14,2.61358369]
[1610381572786,1.851,942.36,938.14,2.61358369]
[1610381572988,1.851,942.36,938.14,1.587]
[1610381573186,28.75005374,943.39,938.14,1.587]
[1610381573394,9.0,943.21,938.14,1.587]
[1610381573786,9.0,943.2,938.14,1.587]
[1610381574187,2.107,943.44,938.14,1.587]
[1610381574587,1.06244,941.24,938.88,4.00959]
[1610381574788,1.10086,941.63,938.88,4.00959]
[1610381574988,1.10086,941.63,938.88,5.44189]
[1610381576289,1.997,943.71,938.88,5.44189]
[1610381576488,4.00959,940.92,940.55,4.00959]
[1610381576688,2.415,942.81,940.55,4.00959]
[1610381576888,2.1524,942.8,940.55,5.98659]
[1610381577287,2.1524,942.8,940.55,1.15619]
[1610381577489,1.04002,943.18,940.55,1.15619]
[1610381577690,1.997,943.71,940.55,1.15619]
[1610381577888,1.04002,944.71,940.55,0.17079]
[1610381578488,2.1165,944.7,940.55,0.17079]
[1610381578688,4.00959,942.52,940.55,0.17079]
[1610381578888,0.36959,942.52,941.12,0.3260945]
[1610381579094,0.36959,942.52,941.12,2.7460945]
[1610381579291,0.36959,942.52,941.12,2.42]
[1610381579490,2.331,944.23,941.12,2.42]
[1610381580693,1.04002,944.71,942.35,4.00959]
[1610381580891,1.04002,944.71,942.35,5.97159]
[1610381581091,1.18312,945.7,942.35,5.97159]
[1610381582293,1.18312,945.7,942.72,0.32557567]
[1610381582494,1.18312,945.7,942.72,2.19357567]
[1610381582697,4.00959,943.61,942.72,1.868]
[1610381582898,2.305,944.01,942.72,1.868]
[1610381583996,1.849,945.48,941.75,3.70697823]
[1610381584193,1.849,945.48,941.99,0.65148153]
[1610381584396,1.849,945.48,941.99,2.305]
[1610381584596,1.849,945.48,941.99,1.2485]
[1610381584597,4.00959,942.0,941.99,1.2485]
[1610381584796,0.4,942.35,941.12,2.19586413]
[1610381584998,0.4,942.35,890.91,0.15883264]
[1610381584999,0.4,942.35,940.61,1.95574551]
[1610381585198,1.06141,942.16,940.5,1.95600819]
[1610381585399,1.06141,942.16,940.5,1.26170819]
[1610381585599,1.06141,942.16,940.35,0.2580446]
[1610381585803,1.06141,942.16,939.24,2.33076564]
[1610381586199,1.04002,941.92,938.58,5.21891361]
[1610381586399,1.04002,941.92,938.58,4.62821361]
[1610381586600,4.00959,939.95,939.66,4.00959]
[1610381586800,1.04002,941.92,939.66,4.00959]
[1610381587000,1.04002,941.92,939.66,5.88959]
[1610381587402,1.04002,941.92,939.66,4.82729]
[1610381587801,0.4,942.35,939.66,4.82729]
[1610381588604,4.00959,942.28,939.66,1.88]
[1610381588804,5.96759,942.28,939.66,1.88]
[1610381589405,1.958,942.28,939.66,1.88]
[1610381589806,0.4,942.35,939.66,1.88]
[1610381591105,1.04002,941.85,939.66,1.88]
[1610381591306,2.86002,941.85,939.51,82.1246]
[1610381591506,1.18312,940.63,939.51,82.1246]
[1610381591706,3.63912,940.63,939.51,80.5234]
[1610381591907,3.63912,940.63,937.37,5.87505224]
[1610381592312,3.63912,940.63,937.05,5.87621656]
[1610381592508,1.06141,939.79,937.05,5.87621656]
[1610381592708,4.00959,938.52,938.17,3.11429]
[1610381592909,4.00959,938.52,938.17,1.71919]
[1610381594115,1.06141,939.79,938.17,1.71919]
[1610381594314,1.06141,939.79,938.17,2.53449]
[1610381594513,1.0472,938.62,938.17,1.56339]
[1610381594713,4.00959,938.18,937.34,2.38632026]
[1610381594912,1.31008,938.49,937.0,0.06199536]
[1610381595116,1.31008,938.49,937.02,0.67792226]
[1610381595314,1.31008,938.49,937.23,0.32713693]
[1610381595514,1.31008,938.49,937.23,2.56413693]
[1610381595713,1.31008,938.49,937.43,0.65435699]
[1610381595914,1.31008,938.49,937.43,1.026]
[1610381596115,1.31008,938.49,936.83,0.28602493]
[1610381596314,1.31008,938.49,935.84,0.63551159]
[1610381596514,2.1317,938.48,934.62,5.89311076]
[1610381596713,2.1317,938.48,936.17,0.65500088]
[1610381596914,88.8721,938.13,936.17,2.333]
[1610381597113,90.7391,938.13,936.17,1.51393201]
[1610381597314,90.7391,938.13,936.17,1.17053201]
[1610381597715,90.7391,938.13,936.17,0.41913201]
[1610381597914,90.7391,938.13,936.17,0.08793201]
[1610381598114,90.7391,938.13,936.17,3.201e-05]
[1610381598316,1.867,938.13,935.33,0.65549528]
[1610381598517,1.867,938.13,934.67,2.62198112]
[1610381598719,77.603,937.15,935.38,4.00959]
[1610381598918,79.313,937.15,935.38,4.00959]
[1610381599917,77.603,937.15,936.05,0.65511444]
[1610381600117,77.603,937.15,936.05,1.99901444]
[1610381600318,77.603,937.15,936.05,1.45441444]
[1610381600519,77.603,937.15,936.05,1.27431444]
[1610381600719,4.00959,936.2,935.39,1.42360026]
[1610381600920,4.00959,936.2,934.2,3.27536015]
[1610381601120,77.603,937.15,934.2,3.27536015]
[1610381601423,77.603,937.15,935.21,3.27546669]
[1610381601620,77.603,937.15,935.21,1.924]
[1610381601821,77.603,937.15,935.21,1.3873]
[1610381602020,77.603,937.15,935.21,2.417]
[1610381602720,4.00959,936.26,935.21,2.417]
[1610381602920,0.37959,936.26,935.21,1.287]
[1610381603322,0.37959,936.26,934.2,69.6626]
[1610381603722,0.37959,936.26,934.2,68.0782]
[1610381603924,0.37959,936.26,934.2,65.8877]
[1610381604123,0.37959,936.26,934.2,62.1138]
[1610381604623,4.00959,935.49,935.22,4.00959]
[1610381604823,78.9533,937.11,935.22,4.00959]
[1610381605027,78.9533,937.11,935.22,5.53659]
[1610381605226,2.1531,937.1,935.22,5.53659]
[1610381605425,78.9533,937.11,935.22,5.14569]
[1610381605826,1.618,937.71,935.22,5.14569]
[1610381606226,2.401,937.92,935.22,5.14569]
[1610381606428,2.1194,938.89,935.56,0.32763044]
[1610381606626,1.06685,937.35,935.56,2.373]
[1610381606826,4.00959,936.82,936.12,2.26549]
[1610381607028,4.00959,936.82,935.77,0.32762737]
[1610381607228,1.06685,937.35,935.22,1.1953558]
[1610381607428,1.06685,937.35,935.6,0.67050624]
[1610381607628,1.10523,937.9,935.6,2.90450624]
[1610381607829,1.10523,937.9,935.6,2.234]
[1610381608029,2.02,938.11,935.69,1.6375751]
[1610381608429,2.02,938.11,935.96,1.63724368]
[1610381608631,2.02,938.11,936.18,1.63714506]
[1610381608831,2.02,938.11,937.45,4.00959]
[1610381609035,2.1461,938.1,937.45,4.00959]
[1610381609234,2.1461,938.1,937.15,1.612]
[1610381609634,2.02,938.11,936.35,1.6367411]
[1610381609834,2.02,938.11,936.49,1.6383453]
[1610381610035,2.02,938.11,936.49,2.482]
[1610381610236,1.04002,940.7,936.49,2.482]
[1610381610434,1.04002,940.7,936.62,1.63598929]
[1610381610636,2.0945,940.69,937.15,0.65429055]
[1610381610835,3.6695,940.69,937.15,0.65429055]
[1610381611037,1.575,940.69,937.64,0.65404207]
[1610381611239,1.575,940.69,938.04,0.65389787]
[1610381611639,1.575,940.69,938.0,0.6538524]
[1610381612039,1.575,940.69,937.94,0.65180197]
[1610381612239,1.575,940.69,937.24,1.813]
[1610381612440,1.575,940.69,936.81,0.6516558]
[1610381612639,1.575,940.69,938.54,0.65360549]
[1610381612839,1.575,940.69,940.68,4.00959]
[1610381613039,1.575,940.69,938.62,0.65339663]
[1610381613238,1.575,940.69,938.33,0.65344812]
[1610381613640,1.575,940.69,938.48,0.65448194]
[1610381614040,1.575,940.69,937.63,1.765]
[1610381614241,1.575,940.69,938.54,0.65348686]
[1610381614640,1.575,940.69,937.69,3.26743428]
[1610381614641,1.575,940.69,938.43,0.65356523]
[1610381614841,1.575,940.69,940.68,4.00959]
[1610381615041,1.575,940.69,937.78,2.6142609]
[1610381615042,1.575,940.69,938.46,0.65342949]
[1610381615442,1.575,940.69,938.47,0.65342782]
[1610381615643,3.7003,940.69,938.48,0.65148552]
[1610381615842,1.575,940.69,938.48,0.65148552]
[1610381616042,28.79749468,941.01,937.82,2.479]
[1610381616845,2.1529,941.73,941.0,4.00959]
[1610381617044,28.65853927,943.15,939.01,1.6279561]
[1610381617243,28.65853927,943.15,939.29,0.65118244]
[1610381617447,28.65853927,943.15,939.37,0.65205811]
[1610381617846,28.65853927,943.15,939.12,30.0]
[1610381618050,2.0973,943.14,940.98,76.6615]
[1610381618251,2.0973,943.14,940.98,58.6685]
[1610381618455,2.48,943.15,941.16,0.32600086]
[1610381618851,2.48,943.15,943.14,0.60459]
[1610381619050,2.48,943.15,941.56,0.32590484]
[1610381619252,2.48,943.15,941.39,0.32492896]
[1610381619454,21.03651086,946.35,942.57,0.3247161]
[1610381619654,13.00151086,946.35,942.57,0.3247161]
[1610381619851,13.00151086,946.35,942.43,0.32570831]
[1610381620051,15.18951086,946.35,942.43,0.32570831]
[1610381620252,15.18951086,946.35,942.6,0.32566262]
[1610381620452,2.188,946.35,942.84,0.32439133]
[1610381620854,2.188,946.35,946.34,4.00959]
[1610381621055,2.188,946.35,943.11,0.32431755]
[1610381621254,2.188,946.35,943.47,0.32435804]
[1610381621653,2.188,946.35,943.46,0.32431008]
[1610381621854,2.188,946.35,943.63,0.32429955]
[1610381622258,2.188,946.35,943.59,0.32425507]
[1610381622656,2.188,946.35,943.39,0.32525547]
[1610381622856,4.00959,944.91,943.17,0.3243088]
[1610381623056,6.15059,944.91,943.17,0.3243088]
[1610381623256,6.15059,944.91,943.05,0.32533467]
[1610381623457,2.141,944.91,943.05,0.32533467]
[1610381623657,2.141,944.91,942.93,0.32541715]
[1610381624059,2.141,944.91,942.82,0.32544002]
[1610381624258,2.141,944.91,942.88,30.0]
[1610381624661,2.141,944.91,942.89,9.0]
[1610381624860,2.188,946.35,944.9,4.00959]
[1610381625059,29.84204485,948.08,943.5,0.3252809]
[1610381625460,29.84204485,948.08,943.56,0.3252361]
[1610381625661,29.91948394,948.18,943.74,0.3251411]
[1610381626062,29.91584719,948.34,943.9,0.32510158]
[1610381626463,29.91584719,948.34,943.82,0.32449584]
[1610381626662,31.85484719,948.34,943.82,0.32449584]
[1610381626862,31.85484719,948.34,945.01,4.00959]
[1610381628865,4.00959,947.03,943.91,0.32510214]
[1610381629066,5.99359,947.03,943.35,1.95112252]
[1610381629265,5.99359,947.03,943.45,0.9756616]
[1610381629666,5.99359,947.03,942.49,0.97639788]
[1610381630067,28.65328264,946.42,942.45,0.9765945]
[1610381630266,28.65328264,946.42,941.89,2.604252]
[1610381630267,30.90328264,946.42,942.54,0.97644693]
[1610381630466,30.90328264,946.42,942.35,1.62741155]
[1610381630666,30.90328264,946.42,941.24,6.4909]
[1610381630667,30.90328264,946.42,942.2,1.62747455]
[1610381630866,4.00959,945.9,945.2,4.00959]
[1610381631066,1.857,945.9,942.24,1.62770831]
[1610381631267,1.857,945.9,942.52,1.62747185]
[1610381631466,1.857,945.9,942.35,1.62195442]
[1610381631766,1.02044,945.07,942.35,1.62195442]
[1610381631966,1.02044,945.07,941.94,1.62802122]
[1610381631967,2.84844,945.07,941.94,1.62802122]
[1610381632166,2.84844,945.07,941.41,1.62908876]
[1610381632366,0.4,942.52,940.84,3.25817751]
[1610381632568,2.43,942.52,940.11,3.25855359]
[1610381632966,2.43,942.52,939.98,3.25935289]
[1610381633171,1.02044,942.28,939.98,3.25935289]
[1610381633367,4.00959,940.46,939.75,1.74493694]
[1610381633566,4.00959,940.46,939.75,1.49073694]
[1610381633766,4.00959,940.46,937.77,6.52507388]
[1610381633767,5.61159,940.46,938.3,4.55300036]
[1610381633968,5.61159,940.46,938.11,4.55408175]
[1610381634169,1.602,940.46,938.11,4.55408175]
[1610381634368,1.602,940.46,937.86,4.55439703]
[1610381634572,1.06141,940.29,937.81,4.57071825]
[1610381634770,1.06141,940.29,937.81,3.82711825]
[1610381634968,1.06685,940.43,937.12,4.47251013]
[1610381634969,1.06141,938.89,937.12,4.47251013]
[1610381635171,1.06141,938.89,936.21,5.22908229]
[1610381635370,1.06685,938.3,936.21,5.22908229]
[1610381635571,2.68285,938.3,935.16,5.8840072]
[1610381635970,2.68285,938.3,935.17,2.1418]
[1610381636170,2.68285,938.3,935.17,1.978]
[1610381636770,4.00959,936.85,936.09,4.00959]
[1610381636970,4.00959,936.85,935.17,1.978]
[1610381637371,2.68285,938.3,935.17,1.978]
[1610381637572,1.06685,938.3,935.17,1.978]
[1610381638576,1.06685,938.3,935.17,1.3848]
[1610381638779,1.06685,938.3,935.86,4.00959]
[1610381638978,4.89861,938.89,935.86,5.88859]
[1610381639178,2.78041,938.89,935.86,5.88859]
[1610381639378,1.851,938.55,935.86,1.879]
[1610381639578,1.851,937.07,935.86,1.879]
[1610381639781,9.0,938.96,935.86,1.879]
[1610381639982,2.029,938.97,935.86,1.879]
[1610381640581,2.095,939.81,935.86,1.879]
[1610381640782,31.45342523,941.17,937.46,4.00959]
[1610381640981,31.45342523,941.17,937.46,5.97359]
[1610381641181,31.45342523,941.17,937.46,1.964]
[1610381641381,31.4375972,941.47,937.46,1.964]
[1610381641784,28.81001379,940.54,937.46,1.964]
[1610381642188,30.09993237,941.74,937.46,1.964]
[1610381642385,30.08662109,941.96,937.55,0.32695741]
[1610381642585,30.08662109,941.96,937.57,30.0]
[1610381642785,30.08482512,942.31,937.9,0.3269379]
[1610381642988,30.08482512,942.31,937.9,1.8529379]
[1610381643185,4.00959,941.44,940.76,4.00959]
[1610381643387,2.104,941.44,940.76,4.00959]
[1610381644390,2.075,942.41,940.76,4.00959]
[1610381644588,2.075,942.41,940.76,5.96259]
[1610381645191,4.00959,943.86,942.4,4.00959]
[1610381645392,4.00959,943.86,942.4,5.79259]
[1610381645790,4.00959,943.86,940.76,1.953]
[1610381645991,2.814,942.52,940.76,1.953]
[1610381646592,2.814,942.52,940.04,0.32605476]
[1610381646794,2.814,942.52,939.87,0.32622866]
[1610381647192,2.814,942.52,939.62,0.32615316]
[1610381647394,2.352,942.52,940.91,0.9936]
[1610381647596,2.352,942.52,940.91,2.199]
[1610381647795,2.352,942.52,942.51,4.00959]
[1610381648395,32.58245446,947.05,942.51,4.00959]
[1610381648797,32.57911355,947.3,942.51,4.00959]
[1610381648994,32.57911355,947.3,941.95,1.722]
[1610381649197,34.46711355,947.3,941.95,1.722]